bitfinex-derivatives/quotes_BTCF0:USTF0_20250216
["timestamp","ask_amount","ask_price","bid_price","bid_amount"]
[1739704872457,0.01029728,97344.0,97343.0,0.01706102]
[1739704873053,0.01029728,97344.0,97343.0,0.01705873]
[1739704873560,0.01029728,97344.0,97343.0,0.0427527]
[1739704876857,0.01029728,97344.0,97343.0,0.0417527]
[1739704881562,0.01029728,97344.0,97343.0,0.01605873]
[1739704884960,0.01029728,97344.0,97343.0,0.01605872]
[1739704889766,0.01029728,97344.0,97339.0,0.24610493]
[1739704890000,0.01029728,97344.0,97340.0,0.0160587]
[1739704890174,0.01029728,97344.0,97341.0,0.0160587]
[1739704890375,0.01029728,97344.0,97342.0,0.0160587]
[1739704890575,0.01029728,97344.0,97339.0,0.24610493]
[1739704890978,0.01029728,97344.0,97340.0,0.01605872]
[1739704891368,0.01029728,97344.0,97340.0,0.26216365]
[1739704891564,0.01029728,97344.0,97340.0,0.24610493]
[1739704895164,0.01029728,97344.0,97339.0,0.3608]
[1739704896071,0.01029728,97344.0,97340.0,0.01605869]
[1739704896476,0.01029728,97344.0,97339.0,0.3608]
[1739704898078,0.01029728,97344.0,97340.0,0.01605869]
[1739704898265,0.01029728,97344.0,97339.0,0.3608]
[1739704899572,0.01029728,97344.0,97340.0,0.01605869]
[1739704899976,0.01029728,97344.0,97342.0,0.18456731]
[1739704903377,0.01029728,97344.0,97343.0,0.24610493]
[1739704907387,0.01029728,97344.0,97339.0,0.3608]
[1739704914179,0.01029728,97344.0,97341.0,0.24610493]
[1739704919499,0.00015418,97344.0,97341.0,0.24610493]
[1739704921495,0.01029154,97344.0,97341.0,0.24610493]
[1739704921697,0.01029154,97344.0,97339.0,0.3608]
[1739704926016,0.01029154,97344.0,97341.0,0.18472254]
[1739704928891,0.01029154,97344.0,97340.0,0.18472254]
[1739704932702,0.01029154,97344.0,97338.0,0.18472254]
[1739704936608,0.01029154,97344.0,97339.0,0.18472254]
[1739704940301,0.01029154,97344.0,97338.0,0.18472254]
[1739704940807,0.00015418,97344.0,97338.0,0.18472254]
[1739704941413,0.01049572,97344.0,97338.0,0.18472254]
[1739704941616,0.01049572,97344.0,97339.0,0.01605891]
[1739704942513,0.01049572,97344.0,97340.0,0.01605891]
[1739704943108,0.01049572,97344.0,97338.0,0.18472254]
[1739704944213,0.01049572,97344.0,97339.0,0.24629672]
[1739704947615,0.01049572,97344.0,97338.0,0.24629672]
[1739704954614,0.01049572,97344.0,97339.0,0.01605864]
[1739704955013,0.01049572,97344.0,97339.0,0.26235536]
[1739704955518,0.01049572,97344.0,97340.0,0.01605864]
[1739704956119,0.01049572,97344.0,97339.0,0.24629672]
[1739704958721,0.01049572,97344.0,97340.0,0.01605863]
[1739704959416,0.01049572,97344.0,97339.0,0.24629672]
[1739704961023,0.01049572,97344.0,97340.0,0.01605861]
[1739704961622,0.01049572,97344.0,97339.0,0.24629672]
[1739704962723,0.01049572,97344.0,97340.0,0.01605862]
[1739704963316,0.01049572,97344.0,97339.0,0.24629672]
[1739704965823,0.01049572,97344.0,97340.0,0.24629672]
[1739704966024,0.01049572,97344.0,97340.0,0.2563376]
[1739704966025,0.00015418,97344.0,97340.0,0.2563376]
[1739704966927,0.00015418,97344.0,97341.0,0.01605871]
[1739704967224,0.00015418,97344.0,97342.0,0.01605871]
[1739704967426,0.00015418,97344.0,97340.0,0.2563376]
[1739704967822,0.00015418,97344.0,97341.0,0.01605839]
[1739704968521,0.00015418,97344.0,97342.0,0.01605839]
[1739704968920,0.00015418,97344.0,97343.0,0.01605839]
[1739704969430,0.00015418,97344.0,97343.0,0.26235511]
[1739704973329,0.00015418,97344.0,97343.0,0.01605839]
[1739704973632,0.00015418,97344.0,97341.0,0.30763116]
[1739704976927,0.00015418,97344.0,97340.0,0.31767204]
[1739704977130,0.00015418,97344.0,97340.0,0.30763116]
[1739704978130,0.00015418,97344.0,97340.0,0.31805025]
[1739704981127,0.00015418,97344.0,97343.0,0.3608]
[1739704983025,0.00015418,97344.0,97343.0,0.37685763]
[1739704985532,0.00015418,97344.0,97343.0,0.01605763]
[1739704986050,0.00015418,97344.0,97340.0,0.30763116]
[1739704989824,0.00015418,97344.0,97328.0,0.18461229]
[1739704990036,0.3608,97333.0,97328.0,0.18461229]
[1739704991540,0.3608,97333.0,97328.0,0.18561229]
[1739704992836,0.00015418,97344.0,97328.0,0.18561229]
[1739704993039,0.3608,97337.0,97328.0,0.18561229]
[1739704993743,0.3608,97337.0,97328.0,0.001]
[1739704993936,0.10164,97336.0,97328.0,0.001]
[1739704994137,0.10164,97336.0,97325.0,0.38565067]
[1739704994332,0.3608,97337.0,97325.0,0.38565067]
[1739704997942,0.3608,97337.0,97325.0,0.20103838]
[1739705003546,0.3608,97337.0,97329.0,0.3608]
[1739705003747,0.10144,97336.0,97329.0,0.3608]
[1739705005748,0.10132,97335.0,97329.0,0.3608]
[1739705005946,0.10132,97335.0,97325.0,0.20103838]
[1739705006142,0.3608,97337.0,97325.0,0.20103838]
[1739705007253,0.3608,97337.0,97328.0,0.18461229]
[1739705010656,0.3608,97337.0,97325.0,0.20103838]
[1739705010657,0.3608,97337.0,97329.0,0.18461229]
[1739705015348,0.3608,97337.0,97330.0,0.18461229]
[1739705019158,0.3608,97337.0,97329.0,0.18461229]
[1739705023661,0.3608,97337.0,97325.0,0.00015418]
[1739705023662,0.3608,97337.0,97330.0,0.18461229]
[1739705027568,0.3608,97337.0,97336.0,0.18461229]
[1739705033973,0.00015418,97344.0,97336.0,0.18461229]
[1739705034176,0.3608,97342.0,97336.0,0.18461229]
[1739705035474,0.3608,97342.0,97334.0,0.18461229]
[1739705042078,0.3608,97342.0,97337.0,0.18461229]
[1739705050788,0.3608,97342.0,97331.0,0.18461229]
[1739705050789,0.15414333,97339.0,97331.0,0.18461229]
[1739705051583,0.3608,97335.0,97331.0,0.18461229]
[1739705054482,0.15414333,97339.0,97331.0,0.18461229]
[1739705054691,0.15414333,97340.0,97331.0,0.18461229]
[1739705054891,0.3608,97335.0,97331.0,0.18461229]
[1739705055780,0.15414333,97340.0,97331.0,0.18461229]
[1739705055982,0.3608,97335.0,97331.0,0.18461229]
[1739705059484,0.3608,97335.0,97325.0,0.00015418]
[1739705059485,0.3608,97335.0,97330.0,0.24614972]
[1739705062481,0.3608,97335.0,97333.0,0.18488875]
[1739705062693,0.15414333,97341.0,97333.0,0.18488875]
[1739705062893,0.3608,97335.0,97333.0,0.18488875]
[1739705065995,0.3608,97335.0,97334.0,0.18488875]
[1739705074101,0.3608,97335.0,97329.0,0.18488875]
[1739705078506,0.3608,97335.0,97330.0,0.18488875]
[1739705082209,0.3608,97335.0,97328.0,0.24614972]
[1739705085919,0.3608,97335.0,97329.0,0.24614972]
[1739705101416,0.3608,97335.0,97330.0,0.24614972]
[1739705105822,0.3608,97335.0,97329.0,0.24614972]
[1739705108529,0.3608,97333.0,97329.0,0.24614972]
[1739705113241,0.3608,97334.0,97329.0,0.24614972]
[1739705113430,0.00015418,97344.0,97329.0,0.24614972]
[1739705114437,0.3608,97333.0,97329.0,0.24614972]
[1739705115537,0.15414333,97343.0,97329.0,0.24614972]
[1739705115844,0.3608,97333.0,97329.0,0.24614972]
[1739705118133,0.3608,97333.0,97328.0,0.24614972]
[1739705118539,0.15414333,97343.0,97328.0,0.24614972]
[1739705119240,0.3608,97335.0,97328.0,0.24614972]
[1739705121255,0.3608,97340.0,97328.0,0.24614972]
[1739705122158,0.3608,97340.0,97326.0,0.3608]
[1739705122159,0.3608,97340.0,97332.0,0.24614972]
[1739705122757,0.00015418,97344.0,97332.0,0.24614972]
[1739705125855,0.00015418,97344.0,97335.0,0.18482356]
[1739705127559,0.3608,97343.0,97335.0,0.18482356]
[1739705129562,0.3608,97343.0,97336.0,0.18482356]
[1739705130952,0.00015418,97344.0,97336.0,0.18482356]
[1739705134063,0.00015418,97344.0,97335.0,0.3608]
[1739705134064,0.00015418,97344.0,97343.0,0.18482356]
[1739705137655,0.00015418,97344.0,97342.0,0.18482356]
[1739705141167,0.00015418,97344.0,97336.0,0.18482356]
[1739705145871,0.00015418,97344.0,97338.0,0.3608]
[1739705147062,0.00015418,97344.0,97343.0,0.18482356]
[1739705154671,0.00015418,97344.0,97338.0,0.3608]
[1739705154672,0.00015418,97344.0,97338.0,0.60694972]
[1739705158881,0.00015418,97344.0,97339.0,0.24614972]
[1739705163185,0.00015418,97344.0,97341.0,0.18474379]
[1739705163784,0.36095418,97344.0,97341.0,0.18474379]
[1739705164179,0.00015418,97344.0,97341.0,0.18474379]
[1739705164591,0.3608,97343.0,97341.0,0.18474379]
[1739705166986,0.3608,97342.0,97341.0,0.18474379]
[1739705167379,0.3608,97342.0,97336.0,0.18474379]
[1739705172193,0.00015418,97344.0,97336.0,0.24614972]
[1739705172389,0.3608,97342.0,97336.0,0.24614972]
[1739705173292,0.00015418,97344.0,97336.0,0.24614972]
[1739705173496,0.3608,97342.0,97336.0,0.24614972]
[1739705173898,0.0956,97341.0,97336.0,0.24614972]
[1739705175797,0.10592294,97341.0,97336.0,0.24614972]
[1739705179304,0.10592294,97341.0,97335.0,0.24614972]
[1739705183199,0.10592294,97341.0,97336.0,0.24614972]
[1739705190902,0.10592294,97341.0,97337.0,0.24614972]
[1739705195317,0.10592294,97341.0,97338.0,0.24614972]
[1739705199213,0.10592294,97341.0,97339.0,0.24614972]
[1739705203201,0.10592294,97341.0,97338.0,0.24614972]
[1739705207807,0.10592294,97341.0,97332.0,0.0303]
[1739705207808,0.10592294,97341.0,97339.0,0.24614972]
[1739705211327,0.10592294,97341.0,97340.0,0.24614972]
[1739705219028,0.10592294,97341.0,97339.0,0.18486894]
[1739705222531,0.10592294,97341.0,97339.0,0.24614972]
[1739705226034,0.10592294,97341.0,97335.0,0.24614972]
[1739705228932,0.07332294,97341.0,97335.0,0.24614972]
[1739705234243,0.07332294,97341.0,97332.0,0.0303]
[1739705238155,0.07332294,97341.0,97339.0,0.24614972]
[1739705242448,0.07332294,97341.0,97340.0,0.24614972]
[1739705247159,0.07332294,97341.0,97339.0,0.24614972]
[1739705251260,0.07332294,97341.0,97337.0,0.24614972]
[1739705258369,0.07332294,97341.0,97336.0,0.24614972]
[1739705261360,0.07332294,97341.0,97332.0,0.0303]
[1739705261361,0.07332294,97341.0,97337.0,0.24614972]
[1739705269973,0.07332294,97341.0,97333.0,0.0328]
[1739705269974,0.07332294,97341.0,97336.0,0.24614972]
[1739705277478,0.07332294,97341.0,97333.0,0.066]
[1739705277479,0.07332294,97341.0,97337.0,0.24614972]
[1739705285685,0.07332294,97341.0,97333.0,0.066]
[1739705285686,0.07332294,97341.0,97338.0,0.24614972]
[1739705286208,0.04102294,97341.0,97338.0,0.24614972]
[1739705286787,0.00015418,97344.0,97338.0,0.24614972]
[1739705287792,0.01068592,97344.0,97338.0,0.24614972]
[1739705289587,0.01068592,97344.0,97340.0,0.24614972]
[1739705289787,0.01068592,97344.0,97341.0,0.0305]
[1739705290486,0.0312,97343.0,97341.0,0.0305]
[1739705290989,0.0629,97343.0,97341.0,0.0305]
[1739705292388,0.0629,97343.0,97340.0,0.24614972]
[1739705292595,0.0629,97343.0,97333.0,0.066]
[1739705292596,0.0629,97343.0,97339.0,0.24614972]
[1739705297099,0.0629,97343.0,97340.0,0.18479446]
[1739705300702,0.0629,97343.0,97341.0,0.18479446]
[1739705304598,0.0629,97343.0,97337.0,0.24614972]
[1739705308308,0.0629,97343.0,97336.0,0.24614972]
[1739705317715,0.0629,97343.0,97337.0,0.24614972]
[1739705321720,0.0629,97343.0,97340.0,0.1848525]
[1739705325119,0.0629,97343.0,97341.0,0.1848525]
[1739705328819,0.0629,97343.0,97334.0,0.0305]
[1739705328820,0.0629,97343.0,97337.0,0.24614972]
[1739705332420,0.0629,97343.0,97338.0,0.24614972]
[1739705337630,0.01068592,97344.0,97338.0,0.24614972]
[1739705339431,0.01068592,97344.0,97334.0,0.0305]
[1739705339432,0.01068592,97344.0,97340.0,0.24614972]
[1739705339631,0.01068592,97344.0,97341.0,0.0311]
[1739705340036,0.01068592,97344.0,97342.0,0.0307]
[1739705342435,0.04358592,97344.0,97342.0,0.0307]
[1739705344534,0.04358592,97344.0,97343.0,0.18481193]
[1739705352636,0.04358592,97344.0,97342.0,0.27684972]
[1739705356643,0.04358592,97344.0,97342.0,0.0307]
[1739705371559,0.04358592,97344.0,97342.0,0.27684972]
[1739705375957,0.04358592,97344.0,97343.0,0.24614972]
[1739705380383,0.04358592,97344.0,97342.0,0.0307]
[1739705388178,0.04358592,97344.0,97343.0,0.24614972]
[1739705392481,0.04358592,97344.0,97342.0,0.0307]
[1739705396178,0.04358592,97344.0,97342.0,0.27718047]
[1739705399391,0.04358592,97344.0,97342.0,0.0307]
[1739705402379,0.04358592,97344.0,97343.0,0.24648047]
[1739705407081,0.04358592,97344.0,97342.0,0.0307]
[1739705412893,0.04358592,97344.0,97336.0,0.0325]
[1739705413120,0.04358592,97344.0,97336.0,0.0647]
[1739705413400,0.04358592,97344.0,97336.0,0.0322]
[1739705413597,0.04358592,97344.0,97336.0,0.33983116]
[1739705417098,0.04358592,97344.0,97337.0,0.70796912]
[1739705420597,0.04358592,97344.0,97336.0,0.33983116]
[1739705424089,0.04358592,97344.0,97337.0,0.30763116]
[1739705427102,0.04358592,97344.0,97343.0,0.24656455]
[1739705432104,0.04358592,97344.0,97337.0,0.30763116]
[1739705436005,0.04358592,97344.0,97339.0,0.24659037]
[1739705440320,0.04358592,97344.0,97336.0,0.0322]
[1739705440321,0.04358592,97344.0,97336.0,0.33983116]
[1739705447408,0.04358592,97344.0,97337.0,0.70739934]
[1739705451118,0.04358592,97344.0,97337.0,0.30763116]
[1739705455816,0.04358592,97344.0,97338.0,0.24661521]
[1739705457521,0.3608,97341.0,97338.0,0.24661521]
[1739705460627,0.3608,97341.0,97330.0,0.30763116]
[1739705460821,0.3608,97331.0,97330.0,0.30763116]
[1739705464527,0.3608,97331.0,97323.0,0.1848899]
[1739705464828,0.0928,97330.0,97323.0,0.1848899]
[1739705468233,0.0928,97330.0,97316.0,0.033]
[1739705469730,0.0928,97330.0,97325.0,1e-08]
[1739705473238,0.3608,97326.0,97325.0,1e-08]
[1739705474530,0.3608,97326.0,97325.0,0.00100001]
[1739705474746,0.46048,97326.0,97325.0,0.00100001]
[1739705476030,0.46048,97326.0,97325.0,0.00200001]
[1739705488346,0.09968,97326.0,97325.0,0.00200001]
[1739705488849,0.46048,97326.0,97325.0,0.00200001]
[1739705533583,0.61462333,97326.0,97325.0,0.00200001]
[1739705533779,0.51494333,97326.0,97325.0,0.00200001]
[1739705537280,0.3608,97326.0,97325.0,0.00200001]
[1739705537584,0.46108,97326.0,97325.0,0.00200001]
[1739705557897,0.46108,97326.0,97325.0,0.18688991]
[1739705558097,0.3608,97326.0,97325.0,0.18688991]
[1739705562098,0.3608,97326.0,97325.0,0.00200001]
[1739705562393,0.46108,97326.0,97325.0,0.00200001]
[1739705569297,0.10028,97326.0,97325.0,0.00200001]
[1739705569494,0.46108,97326.0,97325.0,0.00200001]
[1739705575708,0.46108,97326.0,97325.0,0.18688991]
[1739705575898,0.3608,97326.0,97325.0,0.18688991]
[1739705588210,0.3608,97326.0,97325.0,0.00200001]
[1739705588413,0.46048,97326.0,97325.0,0.00200001]
[1739705594614,0.46048,97326.0,97325.0,0.00200001]
[1739705642651,0.46048,97326.0,97325.0,0.18688991]
[1739705642851,0.3608,97326.0,97325.0,0.18688991]
[1739705647155,0.3608,97326.0,97325.0,0.00200001]
[1739705647360,0.4596,97326.0,97325.0,0.00200001]
[1739705658970,0.4596,97326.0,97325.0,0.18688991]
[1739705659174,0.3608,97326.0,97325.0,0.18688991]
[1739705662671,0.3608,97326.0,97325.0,0.00200001]
[1739705662867,0.4596,97326.0,97325.0,0.00200001]
[1739705672984,0.0988,97326.0,97325.0,0.00200001]
[1739705681988,0.0318,97329.0,97325.0,0.00200001]
[1739705682186,0.0988,97328.0,97325.0,0.00200001]
[1739705682386,0.0988,97328.0,97326.0,0.0319]
[1739705682588,0.0302,97330.0,97326.0,0.0319]
[1739705682892,0.0302,97330.0,97327.0,0.0327]
[1739705685297,0.0302,97330.0,97327.0,0.0337]
[1739705689196,0.0302,97330.0,97327.0,0.001]
[1739705689397,0.1316,97329.0,97327.0,0.001]
[1739705691192,0.1316,97329.0,97325.0,0.24670345]
[1739705691406,0.0328,97329.0,97327.0,0.001]
[1739705691601,0.13156,97329.0,97327.0,0.001]
[1739705692495,0.13156,97329.0,97325.0,1e-08]
[1739705692496,0.0327,97328.0,97325.0,0.00100001]
[1739705692896,0.0327,97328.0,97325.0,1e-08]
[1739705693099,0.0327,97328.0,97327.0,0.001]
[1739705694803,0.0327,97328.0,97325.0,0.00200001]
[1739705695405,0.0327,97328.0,97327.0,0.002]
[1739705695801,0.0327,97328.0,97325.0,1e-08]
[1739705695993,0.0327,97328.0,97325.0,0.00200001]
[1739705697498,0.0327,97328.0,97327.0,0.002]
[1739705698100,0.0327,97328.0,97325.0,0.00200001]
[1739705698808,0.0327,97328.0,97327.0,0.002]
[1739705699307,0.0327,97328.0,97325.0,0.00200001]
[1739705701001,0.0327,97328.0,97327.0,0.002]
[1739705701603,0.0327,97328.0,97325.0,0.00200001]
[1739705702613,0.0327,97328.0,97325.0,1e-08]
[1739705702801,0.0327,97328.0,97327.0,0.002]
[1739705704407,0.0327,97328.0,97325.0,1e-08]
[1739705704408,0.0327,97328.0,97325.0,0.00200001]
[1739705704998,0.0327,97328.0,97327.0,0.002]
[1739705705604,0.0327,97328.0,97325.0,0.00200001]
[1739705707411,0.0327,97328.0,97327.0,0.002]
[1739705708016,0.0327,97328.0,97325.0,0.00200001]
[1739705708612,0.0327,97328.0,97327.0,0.002]
[1739705708915,0.0327,97328.0,97327.0,0.003]
[1739705709319,0.0327,97328.0,97327.0,0.001]
[1739705709517,0.0327,97328.0,97325.0,0.24970345]
[1739705710914,0.0327,97328.0,97327.0,0.002]
[1739705711310,0.0327,97328.0,97327.0,0.001]
[1739705712018,0.0327,97328.0,97327.0,0.003]
[1739705728624,0.0328,97329.0,97327.0,0.003]
[1739705729426,0.3608,97333.0,97327.0,0.003]
[1739705729622,0.3608,97333.0,97328.0,0.0636]
[1739705730114,0.0314,97340.0,97330.0,0.3608]
[1739705730425,0.15414333,97342.0,97330.0,0.3608]
[1739705731127,0.15429751,97344.0,97330.0,0.3608]
[1739705736121,0.15429751,97344.0,97331.0,0.2211]
[1739705736729,0.00015418,97344.0,97340.0,0.24670344]
[1739705737029,0.00015418,97344.0,97341.0,0.0943]
[1739705740116,0.00015418,97344.0,97341.0,0.10455315]
[1739705742131,0.01007702,97351.0,97341.0,0.46535315]
[1739705742331,0.031,97358.0,97341.0,0.46535315]
[1739705742831,0.031,97358.0,97341.0,0.4551]
[1739705743625,0.031,97358.0,97341.0,0.4571]
[1739705744530,0.04134378,97358.0,97347.0,0.18436761]
[1739705744731,0.031,97358.0,97347.0,0.18436761]
[1739705745727,0.031,97358.0,97352.0,0.3608]
[1739705745927,0.031,97358.0,97353.0,0.0953]
[1739705747232,0.031,97358.0,97353.0,0.0963]
[1739705747428,0.031,97358.0,97353.0,0.0973]
[1739705748732,0.0001541,97359.0,97353.0,0.0973]
[1739705748930,0.0001541,97359.0,97354.0,0.18436761]
[1739705750135,0.0328541,97359.0,97354.0,0.18436761]
[1739705750330,0.0301,97358.0,97354.0,0.18536761]
[1739705751337,0.0301,97358.0,97354.0,0.18636761]
[1739705752827,0.0301,97358.0,97354.0,0.18536761]
[1739705753028,0.0301,97358.0,97354.0,0.18636761]
[1739705753425,0.0301,97358.0,97354.0,0.002]
[1739705754739,0.0627,97358.0,97354.0,0.002]
[1739705759542,0.0627,97358.0,97356.0,0.18436761]
[1739705760534,0.0001541,97359.0,97356.0,0.18436761]
[1739705760928,0.0001541,97359.0,97356.0,0.18536761]
[1739705761341,0.0322,97367.0,97356.0,0.18536761]
[1739705761537,0.0311,97377.0,97363.0,0.3608]
[1739705761745,0.0311,97377.0,97364.0,0.064]
[1739705763738,0.04160752,97377.0,97364.0,0.064]
[1739705763937,0.04160752,97377.0,97364.0,0.0313]
[1739705764142,0.04160752,97377.0,97364.0,0.0323]
[1739705764344,0.04160752,97377.0,97364.0,0.0333]
[1739705764538,0.0305,97376.0,97364.0,0.0333]
[1739705764740,0.0619,97376.0,97372.0,0.18436761]
[1739705766945,0.0619,97376.0,97372.0,0.18536761]
[1739705767237,0.0619,97376.0,97372.0,0.18636761]
[1739705767841,0.0619,97376.0,97372.0,0.002]
[1739705779458,0.0619,97376.0,97373.0,0.0327]
[1739705781259,0.0619,97376.0,97373.0,0.0337]
[1739705782164,0.0619,97376.0,97373.0,0.0347]
[1739705782753,0.0305,97376.0,97373.0,0.0347]
[1739705788772,0.04160752,97377.0,97373.0,0.0347]
[1739705789073,0.04160752,97377.0,97373.0,0.0657]
[1739705790269,0.04160752,97377.0,97373.0,0.0347]
[1739705790472,0.0315,97376.0,97373.0,0.0347]
[1739705790974,0.0315,97376.0,97373.0,0.0337]
[1739705791164,0.0315,97376.0,97373.0,0.0347]
[1739705791365,0.0315,97376.0,97373.0,0.28140344]
[1739705792268,0.0315,97376.0,97373.0,0.28040344]
[1739705792469,0.04160752,97377.0,97373.0,0.28140344]
[1739705792874,0.04160752,97377.0,97374.0,0.0319]
[1739705793265,0.04160752,97377.0,97375.0,0.0317]
[1739705793977,0.01050752,97377.0,97375.0,0.0317]
[1739705794174,0.00014362,97380.0,97375.0,0.0317]
[1739705794372,0.03104362,97380.0,97375.0,0.0317]
[1739705794769,0.37115939,97378.0,97375.0,0.0317]
[1739705794983,0.37115939,97378.0,97375.0,0.0327]
[1739705795773,0.37115939,97378.0,97375.0,0.0337]
[1739705797773,0.3608,97377.0,97375.0,0.0337]
[1739705798668,0.01035939,97378.0,97375.0,0.0337]
[1739705798975,0.03104362,97380.0,97375.0,0.0337]
[1739705799875,0.04114871,97380.0,97375.0,0.0337]
[1739705802680,0.04114871,97380.0,97375.0,0.0665]
[1739705803271,0.04114871,97380.0,97375.0,0.31320344]
[1739705804580,0.01024871,97380.0,97375.0,0.31320344]
[1739705805479,0.00014362,97380.0,97375.0,0.31320344]
[1739705806473,0.00014362,97380.0,97375.0,0.31220344]
[1739705806671,0.00014362,97380.0,97375.0,0.31320344]
[1739705807071,0.00014362,97380.0,97375.0,0.24770344]
[1739705807380,0.04326465,97380.0,97375.0,0.24870344]
[1739705807681,0.03274362,97380.0,97377.0,0.24670344]
[1739705809075,0.03274362,97380.0,97377.0,0.24770344]
[1739705809676,0.03274362,97380.0,97377.0,0.24870344]
[1739705810681,0.04302273,97380.0,97377.0,0.002]
[1739705814580,0.04302273,97380.0,97377.0,0.24870344]
[1739705816484,0.03274362,97380.0,97377.0,0.24870344]
[1739705818292,0.03274362,97380.0,97378.0,0.0325]
[1739705819792,0.04295227,97380.0,97378.0,0.0335]
[1739705820385,0.04295227,97380.0,97378.0,0.0345]
[1739705822784,0.03274362,97380.0,97378.0,0.0345]
[1739705823784,0.03274362,97380.0,97379.0,0.24670344]
[1739705824989,0.03274362,97380.0,97379.0,0.24770344]
[1739705826190,0.03274362,97380.0,97379.0,0.24870344]
[1739705828087,0.03274362,97380.0,97379.0,0.25911946]
[1739705829596,0.03274362,97380.0,97379.0,0.24870344]
[1739705829996,0.00014362,97380.0,97379.0,0.25878592]
[1739705830700,0.00014362,97380.0,97379.0,0.24870344]
[1739705831590,0.00014362,97380.0,97379.0,0.002]
[1739705841706,0.03244362,97380.0,97379.0,0.002]
[1739705847117,0.39324362,97380.0,97379.0,0.002]
[1739705847306,0.39324362,97380.0,97354.0,0.3608]
[1739705847504,0.3608,97366.0,97354.0,0.3608]
[1739705848118,0.3608,97366.0,97365.0,0.24641661]
[1739705849022,0.3608,97366.0,97365.0,0.24741661]
[1739705849603,0.03344362,97380.0,97365.0,0.24741661]
[1739705850113,0.3628,97366.0,97365.0,0.24641661]
[1739705851109,0.001,97366.0,97365.0,0.24741661]
[1739705851412,0.3618,97366.0,97365.0,0.24741661]
[1739705851804,0.3608,97366.0,97365.0,0.24741661]
[1739705852004,0.3608,97366.0,97365.0,0.0021541]
[1739705852217,0.3628,97366.0,97365.0,0.0011541]
[1739705852709,0.3638,97366.0,97365.0,0.0011541]
[1739705853813,0.3628,97366.0,97365.0,0.0011541]
[1739705878333,0.51694333,97366.0,97365.0,0.0011541]
[1739705889150,0.3628,97366.0,97365.0,0.0011541]
[1739705895857,0.7236,97366.0,97365.0,0.0011541]
[1739705896243,0.3628,97366.0,97365.0,0.0011541]
[1739705896448,0.7236,97366.0,97365.0,0.0011541]
[1739705900359,0.87774718,97366.0,97365.0,0.0011541]
[1739705903053,0.7236,97366.0,97365.0,0.0011541]
[1739705910663,0.87774718,97366.0,97365.0,0.0011541]
[1739705914164,0.77355027,97366.0,97365.0,0.0011541]
[1739705932670,0.41275027,97366.0,97365.0,0.0011541]
[1739705943074,0.77355027,97366.0,97365.0,0.0011541]
[1739705943980,0.87773111,97366.0,97365.0,0.0011541]
[1739705952185,0.77354959,97366.0,97365.0,0.0011541]
[1739705953384,0.77354959,97366.0,97355.0,0.18455063]
[1739705953591,0.3608,97356.0,97355.0,0.18455063]
[1739705954792,0.3608,97356.0,97355.0,0.18555063]
[1739705955197,0.03319493,97365.0,97355.0,0.18555063]
[1739705955396,0.7226,97356.0,97355.0,0.18555063]
[1739705956092,0.73273425,97356.0,97355.0,0.18555063]
[1739705956297,0.73273425,97356.0,97355.0,0.18455063]
[1739705956597,0.78468384,97356.0,97349.0,0.0321]
[1739705956799,0.0632,97355.0,97349.0,0.0321]
[1739705958398,0.0642,97355.0,97349.0,0.0321]
[1739705959795,0.15390773,97354.0,97349.0,0.0321]
[1739705960897,0.15490773,97354.0,97349.0,0.0321]
[1739705961498,0.15790773,97354.0,97349.0,0.0321]
[1739705963103,0.004,97354.0,97349.0,0.0321]
[1739705964002,0.3608,97350.0,97349.0,0.0321]
[1739705965094,0.3618,97350.0,97349.0,0.0321]
[1739705980720,0.3618,97350.0,97346.0,0.0001541]
[1739705980920,0.033,97349.0,97346.0,0.0001541]
[1739705983420,0.034,97349.0,97346.0,0.0001541]
[1739705987615,0.04995748,97348.0,97346.0,0.0001541]
[1739705989226,0.05095748,97348.0,97346.0,0.0001541]
[1739705995228,0.04995748,97347.0,97346.0,0.0001541]
[1739705996428,0.04995748,97347.0,97346.0,0.0011541]
[1739705998435,0.15417315,97349.0,97346.0,0.0011541]
[1739705998832,0.3608,97347.0,97346.0,0.0011541]
[1739705999536,0.3608,97347.0,97346.0,0.0001541]
[1739706000739,0.3608,97347.0,97346.0,0.0011541]
[1739706007631,0.15417315,97351.0,97346.0,0.0011541]
[1739706007835,0.3608,97347.0,97346.0,0.0011541]
[1739706009339,0.3608,97347.0,97346.0,0.0001541]
[1739706010139,0.3608,97347.0,97346.0,0.0011541]
[1739706012138,0.424,97347.0,97346.0,0.0011541]
[1739706013243,0.424,97347.0,97341.0,0.18451064]
[1739706013542,0.3608,97342.0,97335.0,0.2165068]
[1739706013844,0.3608,97336.0,97335.0,0.2165068]
[1739706015841,0.3608,97336.0,97335.0,0.2185068]
[1739706016242,0.3608,97336.0,97335.0,0.2215068]
[1739706016544,0.54549923,97336.0,97328.0,0.00016]
[1739706016738,0.0628,97335.0,97328.0,0.00016]
[1739706018046,0.09864,97334.0,97328.0,0.00016]
[1739706018549,0.3608,97329.0,97319.0,0.0304]
[1739706018850,0.3608,97320.0,97319.0,0.0304]
[1739706019046,0.45944,97320.0,97319.0,0.0304]
[1739706019644,0.46962544,97320.0,97311.0,0.03]
[1739706019851,0.0635,97319.0,97311.0,0.03]
[1739706020049,0.0635,97319.0,97315.0,0.00138139]
[1739706020639,0.3608,97316.0,97315.0,0.00138139]
[1739706021042,0.3608,97316.0,97315.0,0.007]
[1739706021244,0.45948,97316.0,97315.0,0.007]
[1739706021642,0.45948,97316.0,97315.0,0.00680017]
[1739706021949,0.45948,97316.0,97315.0,0.01380017]
[1739706022145,0.45948,97316.0,97315.0,0.01356034]
[1739706022348,0.09868,97316.0,97315.0,0.01356034]
[1739706022651,0.45948,97316.0,97315.0,0.01328051]
[1739706022854,0.3608,97316.0,97315.0,0.01328051]
[1739706023150,0.3608,97316.0,97315.0,0.01296068]
[1739706023345,0.3608,97316.0,97315.0,0.007]
[1739706023546,0.45948,97316.0,97315.0,0.014]
[1739706023754,0.45948,97316.0,97315.0,0.01364017]
[1739706024252,0.45948,97316.0,97315.0,0.01324034]
[1739706025956,0.45948,97316.0,97315.0,0.01284051]
[1739706026251,0.3608,97316.0,97315.0,0.01284051]
[1739706039366,0.3608,97316.0,97315.0,0.01244068]
[1739706043663,0.0635,97319.0,97315.0,0.01244068]
[1739706043861,0.3608,97316.0,97315.0,0.01244068]
[1739706044966,0.3608,97316.0,97315.0,0.007]
[1739706045161,0.45944,97316.0,97315.0,0.014]